[Event "Titled Tuesday Blitz December 27 Early 2022"]
[White "Melikhov, Evgeny V."]
[Black "Zemlyanskii, Ivan"]
[WhiteFideId "4122046"]
[BlackFideId "24249971"]
[WhiteElo "2269"]
[BlackElo "2300"]
[Result "0-1"]
[Round "01"]
[TimeControl "180+2"]
[Date "2022.12.27"]
[WhiteClock "0:00:15"]
[BlackClock "0:01:16"]

1. d4 {[%clk 0:02:59]}  d5 {[%clk 0:02:59]} 2. c4 {[%clk 0:02:59]}  c6 {[%clk 0:03:00]} 3. Nc3 {[%clk 0:02:59]}  Nf6 {[%clk 0:03:00]} 4. e3 {[%clk 0:02:59]}  Bf5 {[%clk 0:02:58]} 5. Nf3 {[%clk 0:02:59]}  e6 {[%clk 0:02:57]} 6. Nh4 {[%clk 0:02:59]}  Bg6 {[%clk 0:02:57]} 7. Bd2 {[%clk 0:02:58]}  Nbd7 {[%clk 0:02:54]} 8. Qb3 {[%clk 0:02:57]}  Qc7 {[%clk 0:02:54]} 9. O-O-O {[%clk 0:02:54]}  Nb6 {[%clk 0:02:49]} 10. cxd5 {[%clk 0:02:47]}  exd5 {[%clk 0:02:47]} 11. Nxg6 {[%clk 0:02:46]}  hxg6 {[%clk 0:02:47]} 12. g3 {[%clk 0:02:29]}  Bd6 {[%clk 0:02:44]} 13. Bd3 {[%clk 0:02:13]}  a5 {[%clk 0:02:38]} 14. Kb1 {[%clk 0:02:10]}  O-O {[%clk 0:02:25]} 15. Rc1 {[%clk 0:02:03]}  a4 {[%clk 0:02:18]} 16. Qc2 {[%clk 0:02:02]}  Qd7 {[%clk 0:02:17]} 17. h4 {[%clk 0:01:52]}  Rfe8 {[%clk 0:02:17]} 18. e4 {[%clk 0:01:26]}  dxe4 {[%clk 0:02:05]} 19. Nxe4 {[%clk 0:01:26]}  Nbd5 {[%clk 0:02:00]} 20. Nxf6+ {[%clk 0:01:14]}  Nxf6 {[%clk 0:02:01]} 21. Bg5 {[%clk 0:01:07]}  Be7 {[%clk 0:02:01]} 22. Rcd1 {[%clk 0:00:48]}  a3 {[%clk 0:01:55]} 23. b3 {[%clk 0:00:48]}  Nd5 {[%clk 0:01:51]} 24. Bxe7 {[%clk 0:00:39]}  Qxe7 {[%clk 0:01:52]} 25. h5 {[%clk 0:00:40]}  g5 {[%clk 0:01:35]} 26. h6 {[%clk 0:00:39]}  g6 {[%clk 0:01:23]} 27. Bxg6 {[%clk 0:00:30]}  fxg6 {[%clk 0:01:22]} 28. Qxg6+ {[%clk 0:00:31]}  Kh8 {[%clk 0:01:22]} 29. Rde1 {[%clk 0:00:20]}  Qh7 {[%clk 0:01:19]} 30. Qxh7+ {[%clk 0:00:15]}  Kxh7 {[%clk 0:01:20]} 31. Kc2 {[%clk 0:00:15]}  Rxe1 {[%clk 0:01:16]} 32. Rxe1 {[%clk 0:00:15]}  Rf8 {[%clk 0:01:16]} 0-1


[Site "https://www.chess.com"]

[Event "Titled Tuesday Blitz December 27 Early 2022"]
[White "Mohammed, Zozek Salah Mohammed"]
[Black "Avila Pavas, Santiago"]
[WhiteFideId "4803361"]
[BlackFideId "4437128"]
[WhiteElo "2210"]
[BlackElo "2522"]
[Result "0-1"]
[Round "01"]
[TimeControl "180+2"]
[Date "2022.12.27"]
[WhiteClock "0:00:39"]
[BlackClock "0:00:49"]

1. d4 {[%clk 0:02:59]}  Nf6 {[%clk 0:02:59]} 2. Nf3 {[%clk 0:02:59]}  e6 {[%clk 0:02:58]} 3. c4 {[%clk 0:02:58]}  d5 {[%clk 0:02:57]} 4. g3 {[%clk 0:02:58]}  Bb4+ {[%clk 0:02:51]} 5. Bd2 {[%clk 0:02:55]}  a5 {[%clk 0:02:51]} 6. Bg2 {[%clk 0:02:54]}  O-O {[%clk 0:02:51]} 7. O-O {[%clk 0:02:53]}  dxc4 {[%clk 0:02:51]} 8. a3 {[%clk 0:02:51]}  Bxd2 {[%clk 0:02:50]} 9. Nbxd2 {[%clk 0:02:51]}  b5 {[%clk 0:02:50]} 10. Ne5 {[%clk 0:02:50]}  Ra6 {[%clk 0:02:48]} 11. e3 {[%clk 0:02:49]}  c6 {[%clk 0:02:46]} 12. a4 {[%clk 0:02:49]}  Nd5 {[%clk 0:02:45]} 13. axb5 {[%clk 0:02:42]}  cxb5 {[%clk 0:02:46]} 14. Qe2 {[%clk 0:02:41]}  Nd7 {[%clk 0:02:41]} 15. b3 {[%clk 0:02:22]}  Nxe5 {[%clk 0:02:36]} 16. dxe5 {[%clk 0:02:22]}  Nc3 {[%clk 0:02:24]} 17. Qe1 {[%clk 0:02:14]}  Qd3 {[%clk 0:02:24]} 18. bxc4 {[%clk 0:02:03]}  bxc4 {[%clk 0:02:25]} 19. Kh1 {[%clk 0:01:56]}  Bd7 {[%clk 0:02:18]} 20. Qc1 {[%clk 0:01:52]}  Bc6 {[%clk 0:01:30]} 21. Ra3 {[%clk 0:01:30]}  Bxg2+ {[%clk 0:01:28]} 22. Kxg2 {[%clk 0:01:30]}  Qd5+ {[%clk 0:01:23]} 23. f3 {[%clk 0:01:26]}  Nb5 {[%clk 0:01:22]} 24. Ra4 {[%clk 0:01:15]}  c3 {[%clk 0:01:19]} 25. Nc4 {[%clk 0:01:12]}  Rc8 {[%clk 0:01:15]} 26. Rd1 {[%clk 0:01:08]}  Qc6 {[%clk 0:01:00]} 27. e4 {[%clk 0:00:51]}  h6 {[%clk 0:00:52]} 28. Qc2 {[%clk 0:00:48]}  Qc5 {[%clk 0:00:48]} 29. Nd6 {[%clk 0:00:43]}  Nxd6 {[%clk 0:00:47]} 30. exd6 {[%clk 0:00:42]}  Rxd6 {[%clk 0:00:48]} 31. Rxd6 {[%clk 0:00:41]}  Qxd6 {[%clk 0:00:49]} 32. Rxa5 {[%clk 0:00:41]}  Qd2+ {[%clk 0:00:48]} 33. Qxd2 {[%clk 0:00:39]}  cxd2 {[%clk 0:00:49]} 0-1


[Site "https://www.chess.com"]

[Event "Titled Tuesday Blitz December 27 Early 2022"]
[White "Morefield, Jason"]
[Black "Dilmukhametov, Artur"]
[WhiteFideId "30920825"]
[BlackFideId "24179922"]
[WhiteElo "2167"]
[BlackElo "2276"]
[Result "1-0"]
[Round "01"]
[TimeControl "180+2"]
[Date "2022.12.27"]
[WhiteClock "0:01:21"]
[BlackClock "0:00:05"]

1. e4 {[%clk 0:02:58]}  e6 {[%clk 0:02:52]} 2. d4 {[%clk 0:02:57]}  d5 {[%clk 0:02:51]} 3. Nc3 {[%clk 0:02:58]}  Bb4 {[%clk 0:02:49]} 4. e5 {[%clk 0:02:58]}  c5 {[%clk 0:02:49]} 5. a3 {[%clk 0:02:58]}  Bxc3+ {[%clk 0:02:48]} 6. bxc3 {[%clk 0:02:59]}  Qa5 {[%clk 0:02:48]} 7. Bd2 {[%clk 0:02:58]}  Qa4 {[%clk 0:02:47]} 8. h4 {[%clk 0:02:58]}  Ne7 {[%clk 0:02:40]} 9. h5 {[%clk 0:02:58]}  h6 {[%clk 0:02:37]} 10. Bd3 {[%clk 0:02:53]}  Nbc6 {[%clk 0:02:31]} 11. Qg4 {[%clk 0:02:38]}  Kf8 {[%clk 0:02:18]} 12. Qg3 {[%clk 0:02:34]}  c4 {[%clk 0:02:14]} 13. Be2 {[%clk 0:02:25]}  Nf5 {[%clk 0:02:06]} 14. Qf4 {[%clk 0:02:21]}  Qxc2 {[%clk 0:02:03]} 15. g4 {[%clk 0:02:19]}  Nfe7 {[%clk 0:01:58]} 16. f3 {[%clk 0:01:58]}  Bd7 {[%clk 0:01:42]} 17. Nh3 {[%clk 0:01:58]}  Na5 {[%clk 0:01:25]} 18. Bd1 {[%clk 0:01:30]}  Qb2 {[%clk 0:01:17]} 19. Rc1 {[%clk 0:01:29]}  Nb3 {[%clk 0:01:09]} 20. Rc2 {[%clk 0:01:29]}  Qxa3 {[%clk 0:01:05]} 21. Be3 {[%clk 0:01:29]}  Qa6 {[%clk 0:00:39]} 22. O-O {[%clk 0:01:27]}  Nc6 {[%clk 0:00:29]} 23. Qg3 {[%clk 0:01:25]}  Ke7 {[%clk 0:00:25]} 24. f4 {[%clk 0:01:25]}  Raf8 {[%clk 0:00:23]} 25. f5 {[%clk 0:01:26]}  Qb6 {[%clk 0:00:16]} 26. Qh4+ {[%clk 0:01:24]}  f6 {[%clk 0:00:14]} 27. Nf4 {[%clk 0:01:20]}  a5 {[%clk 0:00:12]} 28. Ng6+ {[%clk 0:01:20]}  Kf7 {[%clk 0:00:11]} 29. Nxh8+ {[%clk 0:01:20]}  Rxh8 {[%clk 0:00:10]} 30. fxe6+ {[%clk 0:01:21]}  Bxe6 {[%clk 0:00:09]} 31. exf6 {[%clk 0:01:21]}  gxf6 {[%clk 0:00:09]} 32. Qxf6+ {[%clk 0:01:21]}  Ke8 {[%clk 0:00:06]} 33. Qxe6+ {[%clk 0:01:21]}  Ne7 {[%clk 0:00:05]} 34. Qxb6 {[%clk 0:01:21]} 1-0


[Site "https://www.chess.com"]

[Event "Titled Tuesday Blitz December 27 Early 2022"]
[White "Narayanan.S.L"]
[Black "Lehtosaari, Mauri"]
[WhiteFideId "5058422"]
[BlackFideId "501999"]
[WhiteElo "2660"]
[BlackElo "2176"]
[Result "0-1"]
[Round "01"]
[TimeControl "180+2"]
[Date "2022.12.27"]
[WhiteClock "0:00:27"]
[BlackClock "0:00:11"]

1. b3 {[%clk 0:02:57]}  d5 {[%clk 0:02:54]} 2. Bb2 {[%clk 0:02:58]}  Nf6 {[%clk 0:02:55]} 3. e3 {[%clk 0:02:57]}  Bf5 {[%clk 0:02:55]} 4. f3 {[%clk 0:02:56]}  h6 {[%clk 0:02:53]} 5. g4 {[%clk 0:02:55]}  Bh7 {[%clk 0:02:53]} 6. h4 {[%clk 0:02:56]}  c6 {[%clk 0:02:46]} 7. Ne2 {[%clk 0:02:56]}  a5 {[%clk 0:02:45]} 8. a3 {[%clk 0:02:54]}  Qc7 {[%clk 0:02:44]} 9. d4 {[%clk 0:02:54]}  e6 {[%clk 0:02:34]} 10. Nbc3 {[%clk 0:02:54]}  Bd6 {[%clk 0:02:33]} 11. Rg1 {[%clk 0:02:54]}  g5 {[%clk 0:02:28]} 12. hxg5 {[%clk 0:02:48]}  hxg5 {[%clk 0:02:29]} 13. Qd2 {[%clk 0:02:48]}  Bg6 {[%clk 0:02:23]} 14. O-O-O {[%clk 0:02:48]}  Nbd7 {[%clk 0:02:22]} 15. Kb1 {[%clk 0:02:39]}  O-O-O {[%clk 0:02:14]} 16. Nc1 {[%clk 0:02:39]}  Rh2 {[%clk 0:02:12]} 17. Rg2 {[%clk 0:02:38]}  Rdh8 {[%clk 0:02:12]} 18. Bd3 {[%clk 0:02:36]}  Bxd3 {[%clk 0:02:07]} 19. Nxd3 {[%clk 0:02:36]}  Kb8 {[%clk 0:02:03]} 20. Na4 {[%clk 0:02:31]}  Rxg2 {[%clk 0:01:56]} 21. Qxg2 {[%clk 0:02:32]}  Rh2 {[%clk 0:01:56]} 22. Qg1 {[%clk 0:02:33]}  Rh3 {[%clk 0:01:56]} 23. Qf1 {[%clk 0:02:31]}  Rh2 {[%clk 0:01:55]} 24. Nac5 {[%clk 0:02:27]}  Qd8 {[%clk 0:01:27]} 25. e4 {[%clk 0:02:18]}  Bc7 {[%clk 0:01:19]} 26. e5 {[%clk 0:02:15]}  Nxc5 {[%clk 0:01:17]} 27. Nxc5 {[%clk 0:02:10]}  Nd7 {[%clk 0:01:17]} 28. Nd3 {[%clk 0:02:10]}  Qh8 {[%clk 0:01:16]} 29. Bc1 {[%clk 0:02:05]}  Bd8 {[%clk 0:01:14]} 30. a4 {[%clk 0:01:59]}  Be7 {[%clk 0:01:08]} 31. Bd2 {[%clk 0:01:57]}  Bd8 {[%clk 0:00:51]} 32. Qe1 {[%clk 0:01:51]}  b6 {[%clk 0:00:46]} 33. b4 {[%clk 0:01:52]}  axb4 {[%clk 0:00:40]} 34. Bxb4 {[%clk 0:01:53]}  Bc7 {[%clk 0:00:26]} 35. Qc3 {[%clk 0:01:51]}  Kb7 {[%clk 0:00:26]} 36. a5 {[%clk 0:01:49]}  Qa8 {[%clk 0:00:22]} 37. axb6 {[%clk 0:01:45]}  Bxb6 {[%clk 0:00:20]} 38. Kb2 {[%clk 0:01:43]}  Qa4 {[%clk 0:00:19]} 39. Nc5+ {[%clk 0:00:53]}  Nxc5 {[%clk 0:00:19]} 40. dxc5 {[%clk 0:00:54]}  Bc7 {[%clk 0:00:18]} 41. Ra1 {[%clk 0:00:43]}  Qb5 {[%clk 0:00:17]} 42. Rb1 {[%clk 0:00:43]}  Qa4 {[%clk 0:00:15]} 43. Ba3 {[%clk 0:00:39]}  Kc8 {[%clk 0:00:11]} 44. Rd1 {[%clk 0:00:29]}  Bxe5 {[%clk 0:00:10]} 45. Qxe5 {[%clk 0:00:26]}  Qxc2+ {[%clk 0:00:10]} 46. Ka1 {[%clk 0:00:27]}  Qa2# {[%clk 0:00:11]} 0-1


[Site "https://www.chess.com"]

[Event "Titled Tuesday Blitz December 27 Early 2022"]
[White "Nguyen Hong Nhung"]
[Black "Saleem, Arshaq"]
[WhiteFideId "12412201"]
[BlackFideId "2081857"]
[WhiteElo "2003"]
[BlackElo "2133"]
[Result "1-0"]
[Round "01"]
[TimeControl "180+2"]
[Date "2022.12.27"]
[WhiteClock "0:00:19"]
[BlackClock "0:00:16"]

1. e4 {[%clk 0:02:59]}  c5 {[%clk 0:02:57]} 2. Nc3 {[%clk 0:02:59]}  a6 {[%clk 0:02:55]} 3. a4 {[%clk 0:02:58]}  Nc6 {[%clk 0:02:54]} 4. f4 {[%clk 0:02:58]}  g6 {[%clk 0:02:54]} 5. Nf3 {[%clk 0:02:58]}  Bg7 {[%clk 0:02:54]} 6. Bc4 {[%clk 0:02:59]}  e6 {[%clk 0:02:55]} 7. O-O {[%clk 0:02:59]}  Nge7 {[%clk 0:02:55]} 8. d3 {[%clk 0:03:00]}  d5 {[%clk 0:02:54]} 9. Ba2 {[%clk 0:02:56]}  O-O {[%clk 0:02:54]} 10. Kh1 {[%clk 0:02:53]}  Nb4 {[%clk 0:02:47]} 11. Bb3 {[%clk 0:02:51]}  Nec6 {[%clk 0:02:37]} 12. Na2 {[%clk 0:02:33]}  dxe4 {[%clk 0:02:29]} 13. dxe4 {[%clk 0:02:30]}  c4 {[%clk 0:02:23]} 14. Nxb4 {[%clk 0:02:22]}  Nxb4 {[%clk 0:02:17]} 15. Bxc4 {[%clk 0:02:11]}  Qxd1 {[%clk 0:02:16]} 16. Rxd1 {[%clk 0:02:12]}  Nxc2 {[%clk 0:02:17]} 17. Rb1 {[%clk 0:02:13]}  b5 {[%clk 0:02:07]} 18. axb5 {[%clk 0:02:08]}  axb5 {[%clk 0:02:08]} 19. Bxb5 {[%clk 0:02:09]}  Bb7 {[%clk 0:02:08]} 20. e5 {[%clk 0:01:57]}  Be4 {[%clk 0:01:58]} 21. Bd2 {[%clk 0:01:47]}  Rfb8 {[%clk 0:01:45]} 22. Be2 {[%clk 0:01:41]}  Bf8 {[%clk 0:01:40]} 23. Ng5 {[%clk 0:01:32]}  Bd5 {[%clk 0:01:13]} 24. Bc3 {[%clk 0:01:25]}  Ne3 {[%clk 0:01:06]} 25. Rg1 {[%clk 0:01:19]}  Bc5 {[%clk 0:01:05]} 26. Bf3 {[%clk 0:01:12]}  h6 {[%clk 0:01:01]} 27. Ne4 {[%clk 0:01:03]}  Bb6 {[%clk 0:00:59]} 28. Nf6+ {[%clk 0:01:01]}  Kg7 {[%clk 0:00:51]} 29. Nxd5 {[%clk 0:01:00]}  exd5 {[%clk 0:00:51]} 30. Rge1 {[%clk 0:00:53]}  Ra2 {[%clk 0:00:48]} 31. Ra1 {[%clk 0:00:36]}  Rxa1 {[%clk 0:00:46]} 32. Rxa1 {[%clk 0:00:37]}  d4 {[%clk 0:00:46]} 33. Be1 {[%clk 0:00:23]}  Nc4 {[%clk 0:00:42]} 34. b3 {[%clk 0:00:22]}  Ne3 {[%clk 0:00:41]} 35. Rc1 {[%clk 0:00:22]}  d3 {[%clk 0:00:38]} 36. Bd2 {[%clk 0:00:22]}  Nf5 {[%clk 0:00:25]} 37. Be4 {[%clk 0:00:21]}  Ne7 {[%clk 0:00:20]} 38. b4 {[%clk 0:00:19]}  Rd8 {[%clk 0:00:19]} 39. Rc3 {[%clk 0:00:20]}  Ra8 {[%clk 0:00:16]} 40. Bxa8 {[%clk 0:00:19]} 1-0


[Site "https://www.chess.com"]

[Event "Titled Tuesday Blitz December 27 Early 2022"]
[White "Ohanyan, Emin"]
[Black "Hnydiuk, Aleksander"]
[WhiteFideId "13312022"]
[BlackFideId "1109057"]
[WhiteElo "2444"]
[BlackElo "2363"]
[Result "0-1"]
[Round "01"]
[TimeControl "180+2"]
[Date "2022.12.27"]
[WhiteClock "0:00:04"]
[BlackClock "0:00:06"]

1. e4 {[%clk 0:02:55]}  e5 {[%clk 0:02:59]} 2. Nc3 {[%clk 0:02:48]}  Nc6 {[%clk 0:02:58]} 3. Bc4 {[%clk 0:02:41]}  Nf6 {[%clk 0:02:57]} 4. d3 {[%clk 0:02:42]}  Na5 {[%clk 0:02:55]} 5. Bb3 {[%clk 0:02:42]}  Nxb3 {[%clk 0:02:54]} 6. axb3 {[%clk 0:02:43]}  d6 {[%clk 0:02:50]} 7. f4 {[%clk 0:02:42]}  Be7 {[%clk 0:02:49]} 8. Nf3 {[%clk 0:02:41]}  O-O {[%clk 0:02:45]} 9. O-O {[%clk 0:02:41]}  c6 {[%clk 0:02:38]} 10. Kh1 {[%clk 0:02:39]}  Nd7 {[%clk 0:02:22]} 11. Qe1 {[%clk 0:02:37]}  b5 {[%clk 0:02:12]} 12. Qg3 {[%clk 0:02:36]}  Bf6 {[%clk 0:02:09]} 13. f5 {[%clk 0:02:15]}  b4 {[%clk 0:02:05]} 14. Nd1 {[%clk 0:02:14]}  d5 {[%clk 0:02:05]} 15. Nf2 {[%clk 0:02:10]}  Bb7 {[%clk 0:02:01]} 16. Ng4 {[%clk 0:02:08]}  Re8 {[%clk 0:01:54]} 17. Bh6 {[%clk 0:01:48]}  Kh8 {[%clk 0:01:48]} 18. Nxf6 {[%clk 0:01:47]}  Qxf6 {[%clk 0:01:49]} 19. Bg5 {[%clk 0:01:41]}  Qd6 {[%clk 0:01:49]} 20. Rae1 {[%clk 0:01:40]}  f6 {[%clk 0:01:47]} 21. Bc1 {[%clk 0:01:40]}  a5 {[%clk 0:01:43]} 22. d4 {[%clk 0:01:29]}  c5 {[%clk 0:01:14]} 23. dxe5 {[%clk 0:01:24]}  Nxe5 {[%clk 0:01:11]} 24. Nxe5 {[%clk 0:01:24]}  Qxe5 {[%clk 0:01:08]} 25. Bf4 {[%clk 0:01:23]}  Qxb2 {[%clk 0:01:05]} 26. e5 {[%clk 0:01:24]}  Qxc2 {[%clk 0:00:51]} 27. e6 {[%clk 0:00:11]}  Qxf5 {[%clk 0:00:48]} 28. e7 {[%clk 0:00:09]}  d4 {[%clk 0:00:44]} 29. Bc1 {[%clk 0:00:03]}  Qg6 {[%clk 0:00:44]} 30. Qf2 {[%clk 0:00:02]}  a4 {[%clk 0:00:40]} 31. bxa4 {[%clk 0:00:03]}  c4 {[%clk 0:00:40]} 32. Kg1 {[%clk 0:00:03]}  c3 {[%clk 0:00:39]} 33. Rd1 {[%clk 0:00:02]}  d3 {[%clk 0:00:38]} 34. Rfe1 {[%clk 0:00:02]}  d2 {[%clk 0:00:38]} 35. Bxd2 {[%clk 0:00:02]}  cxd2 {[%clk 0:00:38]} 36. Rxd2 {[%clk 0:00:02]}  b3 {[%clk 0:00:33]} 37. Qb6 {[%clk 0:00:03]}  Be4 {[%clk 0:00:28]} 38. Qb4 {[%clk 0:00:03]}  Bc2 {[%clk 0:00:19]} 39. a5 {[%clk 0:00:03]}  h6 {[%clk 0:00:19]} 40. h3 {[%clk 0:00:03]}  Rab8 {[%clk 0:00:18]} 41. Qc3 {[%clk 0:00:03]}  b2 {[%clk 0:00:14]} 42. Rxc2 {[%clk 0:00:01]}  b1=Q {[%clk 0:00:13]} 43. Rxb1 {[%clk 0:00:01]}  Rxb1+ {[%clk 0:00:14]} 44. Kh2 {[%clk 0:00:02]}  Rbb8 {[%clk 0:00:12]} 45. Re2 {[%clk 0:00:03]}  Qf7 {[%clk 0:00:10]} 46. Qc5 {[%clk 0:00:03]}  Rb7 {[%clk 0:00:09]} 47. a6 {[%clk 0:00:04]}  Rbxe7 {[%clk 0:00:09]} 48. Rb2 {[%clk 0:00:03]}  Rc7 {[%clk 0:00:07]} 49. Qa5 {[%clk 0:00:03]}  Qe7 {[%clk 0:00:07]} 50. Ra2 {[%clk 0:00:02]}  Qe5+ {[%clk 0:00:07]} 51. Qxe5 {[%clk 0:00:03]}  fxe5 {[%clk 0:00:07]} 52. Rc2 {[%clk 0:00:04]}  Rxc2 {[%clk 0:00:06]} 0-1


[Site "https://www.chess.com"]

[Event "Titled Tuesday Blitz December 27 Early 2022"]
[White "Oparin, Grigoriy"]
[Black "Cnejev, Vladimir-Alexandru"]
[WhiteFideId "24125890"]
[BlackFideId "1260898"]
[WhiteElo "2667"]
[BlackElo "2374"]
[Result "1-0"]
[Round "01"]
[TimeControl "180+2"]
[Date "2022.12.27"]
[WhiteClock "0:01:58"]
[BlackClock "0:00:02"]

1. e4 {[%clk 0:03:00]}  e5 {[%clk 0:02:57]} 2. Nf3 {[%clk 0:02:59]}  Nc6 {[%clk 0:02:55]} 3. Bb5 {[%clk 0:03:00]}  Nf6 {[%clk 0:02:52]} 4. d3 {[%clk 0:02:59]}  d6 {[%clk 0:02:50]} 5. O-O {[%clk 0:02:57]}  Be7 {[%clk 0:02:50]} 6. Re1 {[%clk 0:02:55]}  O-O {[%clk 0:02:50]} 7. c3 {[%clk 0:02:56]}  a6 {[%clk 0:02:50]} 8. Ba4 {[%clk 0:02:56]}  b5 {[%clk 0:02:50]} 9. Bc2 {[%clk 0:02:55]}  Bb7 {[%clk 0:02:50]} 10. d4 {[%clk 0:02:50]}  Re8 {[%clk 0:02:49]} 11. Bg5 {[%clk 0:02:49]}  h6 {[%clk 0:02:46]} 12. Bh4 {[%clk 0:02:50]}  exd4 {[%clk 0:02:40]} 13. cxd4 {[%clk 0:02:50]}  Nb4 {[%clk 0:02:40]} 14. Nc3 {[%clk 0:02:45]}  Nxc2 {[%clk 0:02:38]} 15. Qxc2 {[%clk 0:02:45]}  b4 {[%clk 0:01:46]} 16. Bxf6 {[%clk 0:02:43]}  Bxf6 {[%clk 0:01:42]} 17. Nd5 {[%clk 0:02:42]}  Bxd5 {[%clk 0:01:32]} 18. exd5 {[%clk 0:02:42]}  Qd7 {[%clk 0:01:33]} 19. h3 {[%clk 0:02:35]}  g6 {[%clk 0:01:26]} 20. Rac1 {[%clk 0:02:29]}  Rxe1+ {[%clk 0:01:07]} 21. Rxe1 {[%clk 0:02:30]}  Kf8 {[%clk 0:01:02]} 22. Rc1 {[%clk 0:02:28]}  Ra7 {[%clk 0:00:26]} 23. Qd2 {[%clk 0:02:28]}  h5 {[%clk 0:00:25]} 24. Qxb4 {[%clk 0:02:28]}  Qd8 {[%clk 0:00:09]} 25. b3 {[%clk 0:02:25]}  Kg7 {[%clk 0:00:09]} 26. Qa4 {[%clk 0:02:17]}  a5 {[%clk 0:00:09]} 27. Re1 {[%clk 0:02:16]}  Kf8 {[%clk 0:00:07]} 28. Nd2 {[%clk 0:02:13]}  Qc8 {[%clk 0:00:05]} 29. Ne4 {[%clk 0:02:11]}  Be7 {[%clk 0:00:04]} 30. Nc3 {[%clk 0:02:10]}  Qf5 {[%clk 0:00:02]} 31. Qc6 {[%clk 0:01:59]}  h4 {[%clk 0:00:02]} 32. Nb5 {[%clk 0:01:58]} 1-0


[Site "https://www.chess.com"]

[Event "Titled Tuesday Blitz December 27 Early 2022"]
[White "Orzech, Dominik"]
[Black "Mihajlov, Sebastian"]
[WhiteFideId "1115065"]
[BlackFideId "1512110"]
[WhiteElo "2308"]
[BlackElo "2373"]
[Result "0-1"]
[Round "01"]
[TimeControl "180+2"]
[Date "2022.12.27"]
[WhiteClock "0:01:00"]
[BlackClock "0:00:26"]

1. e4 {[%clk 0:02:58]}  c5 {[%clk 0:02:59]} 2. Nf3 {[%clk 0:02:58]}  d6 {[%clk 0:02:59]} 3. Nc3 {[%clk 0:02:57]}  Nf6 {[%clk 0:02:59]} 4. d4 {[%clk 0:02:57]}  cxd4 {[%clk 0:03:00]} 5. Nxd4 {[%clk 0:02:57]}  a6 {[%clk 0:03:01]} 6. Bg5 {[%clk 0:02:57]}  e6 {[%clk 0:03:01]} 7. f4 {[%clk 0:02:57]}  Be7 {[%clk 0:03:01]} 8. Qf3 {[%clk 0:02:56]}  h6 {[%clk 0:02:56]} 9. Bh4 {[%clk 0:02:42]}  Qc7 {[%clk 0:02:54]} 10. O-O-O {[%clk 0:02:36]}  Nxe4 {[%clk 0:02:31]} 11. Bxe7 {[%clk 0:02:13]}  Nxc3 {[%clk 0:02:31]} 12. Bxd6 {[%clk 0:02:12]}  Nxa2+ {[%clk 0:02:31]} 13. Kb1 {[%clk 0:02:12]}  Qxd6 {[%clk 0:02:30]} 14. Kxa2 {[%clk 0:02:11]}  O-O {[%clk 0:02:13]} 15. Bd3 {[%clk 0:02:07]}  Nd7 {[%clk 0:02:02]} 16. g4 {[%clk 0:02:01]}  Nc5 {[%clk 0:02:00]} 17. g5 {[%clk 0:01:52]}  hxg5 {[%clk 0:01:55]} 18. fxg5 {[%clk 0:01:50]}  e5 {[%clk 0:01:55]} 19. Nf5 {[%clk 0:01:44]}  Qe6+ {[%clk 0:01:53]} 20. Kb1 {[%clk 0:01:39]}  Nxd3 {[%clk 0:01:53]} 21. Nh6+ {[%clk 0:01:35]}  gxh6 {[%clk 0:01:52]} 22. gxh6 {[%clk 0:01:35]}  Nf4 {[%clk 0:01:50]} 23. Rhg1+ {[%clk 0:01:30]}  Kh8 {[%clk 0:01:48]} 24. Rg5 {[%clk 0:01:27]}  Qxh6 {[%clk 0:00:53]} 25. Rdg1 {[%clk 0:01:22]}  Be6 {[%clk 0:00:44]} 26. Rxe5 {[%clk 0:01:18]}  Rg8 {[%clk 0:00:43]} 27. Rf1 {[%clk 0:01:15]}  Rg4 {[%clk 0:00:33]} 28. h3 {[%clk 0:01:15]}  Rh4 {[%clk 0:00:34]} 29. Qc3 {[%clk 0:01:12]}  Kh7 {[%clk 0:00:29]} 30. Re4 {[%clk 0:01:09]}  Rg8 {[%clk 0:00:27]} 31. Qe5 {[%clk 0:01:06]}  Ng6 {[%clk 0:00:26]} 32. Rxh4 {[%clk 0:01:01]}  Nxe5 {[%clk 0:00:25]} 33. Rxh6+ {[%clk 0:01:00]}  Kxh6 {[%clk 0:00:26]} 0-1


[Site "https://www.chess.com"]

[Event "Titled Tuesday Blitz December 27 Early 2022"]
[White "Ovchinnikov, Vsevolod"]
[Black "Osiecki, Stanislaw"]
[WhiteFideId "24176842"]
[BlackFideId "1102990"]
[WhiteElo "2426"]
[BlackElo "2055"]
[Result "1-0"]
[Round "01"]
[TimeControl "180+2"]
[Date "2022.12.27"]
[WhiteClock "0:00:38"]
[BlackClock "0:01:39"]

1. d4 {[%clk 0:02:59]}  Nf6 {[%clk 0:02:58]} 2. c4 {[%clk 0:03:00]}  g6 {[%clk 0:02:58]} 3. Nc3 {[%clk 0:02:59]}  Bg7 {[%clk 0:02:59]} 4. e4 {[%clk 0:02:59]}  d6 {[%clk 0:02:59]} 5. Nf3 {[%clk 0:03:00]}  O-O {[%clk 0:02:59]} 6. h3 {[%clk 0:02:59]}  e5 {[%clk 0:02:59]} 7. d5 {[%clk 0:02:59]}  Nh5 {[%clk 0:02:54]} 8. g3 {[%clk 0:02:59]}  a5 {[%clk 0:02:53]} 9. Be2 {[%clk 0:02:54]}  Na6 {[%clk 0:02:52]} 10. Nh2 {[%clk 0:02:46]}  Nf6 {[%clk 0:02:33]} 11. g4 {[%clk 0:02:38]}  Nc5 {[%clk 0:02:32]} 12. Qc2 {[%clk 0:02:38]}  a4 {[%clk 0:02:30]} 13. Nf1 {[%clk 0:02:35]}  Bd7 {[%clk 0:02:27]} 14. Ng3 {[%clk 0:02:35]}  c6 {[%clk 0:02:24]} 15. Be3 {[%clk 0:02:02]}  cxd5 {[%clk 0:02:21]} 16. exd5 {[%clk 0:01:49]}  b6 {[%clk 0:02:19]} 17. g5 {[%clk 0:01:37]}  Ne8 {[%clk 0:02:19]} 18. h4 {[%clk 0:01:37]}  f5 {[%clk 0:02:16]} 19. gxf6 {[%clk 0:01:37]}  Nxf6 {[%clk 0:02:15]} 20. h5 {[%clk 0:01:38]}  Bf5 {[%clk 0:01:53]} 21. Nxf5 {[%clk 0:01:25]}  gxf5 {[%clk 0:01:53]} 22. h6 {[%clk 0:01:23]}  Bh8 {[%clk 0:01:48]} 23. Qxf5 {[%clk 0:00:51]}  Kf7 {[%clk 0:01:42]} 24. Bxc5 {[%clk 0:00:40]}  bxc5 {[%clk 0:01:40]} 25. Bh5+ {[%clk 0:00:38]}  Ke7 {[%clk 0:01:39]} 26. Qe6# {[%clk 0:00:38]} 1-0


[Site "https://www.chess.com"]